bitfinex-derivatives/quotes_BTCF0:USTF0_20230402
["timestamp","ask_amount","ask_price","bid_price","bid_amount"]
[1680448567437,0.6014,28097.0,28091.0,0.10592648]
[1680448567634,0.6014,28092.0,28090.0,0.41702648]
[1680448567840,0.05,28096.0,28091.0,0.10592648]
[1680448568035,0.05,28096.0,28088.0,0.3007]
[1680448568036,0.05,28096.0,28095.0,0.009]
[1680448568446,0.05,28096.0,28095.0,0.23138471]
[1680448568844,0.05,28096.0,28095.0,0.22238471]
[1680448569041,0.003,28097.0,28095.0,0.22238471]
[1680448569236,0.003,28096.0,28095.0,0.009]
[1680448569549,0.003,28096.0,28095.0,0.28138471]
[1680448569847,0.003,28096.0,28095.0,0.059]
[1680448570047,0.03190472,28096.0,28095.0,0.059]
[1680448570246,0.003,28096.0,28095.0,0.059]
[1680448570442,0.3562,28096.0,28095.0,0.059]
[1680448570852,0.3562,28096.0,28095.0,0.009]
[1680448571452,0.3562,28096.0,28088.0,0.05]
[1680448571453,0.4062,28096.0,28084.0,0.10592648]
[1680448571655,0.3007,28088.0,28087.0,0.05]
[1680448571857,0.3007,28088.0,28086.0,0.05]
[1680448572054,0.3007,28087.0,28086.0,0.05]
[1680448572553,0.05,28090.0,28084.0,0.3007]
[1680448572748,0.05,28090.0,28088.0,0.7007]
[1680448572959,0.05,28092.0,28088.0,0.7007]
[1680448573156,0.3007,28095.0,28089.0,0.39166136]
[1680448573547,0.3007,28095.0,28089.0,0.44166136]
[1680448573750,0.3007,28095.0,28089.0,0.05]
[1680448573954,0.05,28094.0,28089.0,0.05]
[1680448574156,0.3007,28091.0,28089.0,0.05]
[1680448574555,0.6539,28091.0,28090.0,0.05]
[1680448575162,0.6569,28091.0,28090.0,0.05]
[1680448575363,0.6569,28091.0,28078.0,0.6038]
[1680448575364,0.7069,28091.0,28082.0,0.05]
[1680448575553,0.3007,28083.0,28078.0,0.3031]
[1680448575757,0.3007,28080.0,28078.0,0.05]
[1680448576654,0.3007,28080.0,28076.0,0.05]
[1680448576856,0.3037,28080.0,28076.0,0.05]
[1680448577258,0.3037,28080.0,28076.0,0.3507]
[1680448577451,0.003,28080.0,28076.0,0.3507]
[1680448577653,0.3037,28080.0,28077.0,0.39356687]
[1680448578061,0.3037,28080.0,28078.0,0.05]
[1680448578263,0.3007,28079.0,28077.0,0.05]
[1680448578455,0.05,28078.0,28074.0,0.05]
[1680448578656,0.3007,28076.0,28072.0,0.05407122]
[1680448578858,0.05,28078.0,28073.0,0.05]
[1680448579068,0.3007,28079.0,28073.0,0.05]
[1680448579660,0.3007,28079.0,28072.0,0.05]
[1680448579661,0.3007,28076.0,28072.0,0.05]
[1680448579953,0.3007,28073.0,28070.0,0.3273]
[1680448580158,0.05,28072.0,28069.0,0.05]
[1680448580860,0.05,28072.0,28068.0,0.3007]
[1680448581160,0.6044,28073.0,28066.0,0.05]
[1680448581364,0.05,28075.0,28072.0,0.4]
[1680448581557,0.05,28075.0,28074.0,0.3007]
[1680448581759,0.3007,28079.0,28074.0,0.3007]
[1680448582659,0.003,28075.0,28074.0,0.3027]
[1680448582865,0.003,28075.0,28074.0,0.3527]
[1680448583059,0.3007,28079.0,28074.0,0.3527]
[1680448583060,0.3037,28079.0,28074.0,0.3527]
[1680448583259,0.0432868,28078.0,28074.0,0.3527]
[1680448583559,0.003,28075.0,28074.0,0.3527]
[1680448584157,0.3037,28079.0,28074.0,0.052]
[1680448584361,0.04328747,28075.0,28074.0,0.052]
[1680448584557,0.05,28078.0,28074.0,0.002]
[1680448585060,0.04328797,28077.0,28074.0,0.002]
[1680448585256,0.003,28075.0,28074.0,0.002]
[1680448585963,0.3507,28084.0,28076.0,0.4]
[1680448586175,0.3507,28084.0,28079.0,0.3007]
[1680448586375,0.3007,28084.0,28079.0,0.3007]
[1680448586665,0.3007,28084.0,28080.0,0.05]
[1680448586865,0.05,28087.0,28080.0,0.05]
[1680448587066,0.3507,28088.0,28080.0,0.05]
[1680448587266,0.3007,28085.0,28080.0,0.05]
[1680448587467,0.3007,28088.0,28080.0,0.05]
[1680448587670,0.3007,28088.0,28082.0,0.3007]
[1680448587971,0.003,28084.0,28083.0,0.4606953]
[1680448588164,0.3007,28088.0,28083.0,0.4606953]
[1680448588372,0.3037,28088.0,28084.0,0.05]
[1680448588762,0.3037,28088.0,28085.0,0.3974188]
[1680448588964,0.3007,28088.0,28086.0,0.05]
[1680448589262,0.3037,28088.0,28086.0,0.05]
[1680448589665,0.3037,28088.0,28085.0,0.3974188]
[1680448589968,0.4,28085.0,28084.0,0.005]
[1680448590174,1.0539,28085.0,28084.0,0.005]
[1680448590372,0.3532,28081.0,28074.0,0.3329]
[1680448590567,0.28213622,28076.0,28074.0,0.3329]
[1680448590770,0.28213622,28076.0,28068.0,0.05374973]
[1680448590961,0.28213622,28076.0,28070.0,0.05]
[1680448591167,0.3007,28073.0,28070.0,0.05]
[1680448592265,0.6014,28073.0,28066.0,0.05]
[1680448592459,0.3007,28067.0,28066.0,0.04699999]
[1680448592665,0.6539,28067.0,28063.0,0.05]
[1680448592862,0.6539,28064.0,28063.0,0.05]
[1680448593062,1.0539,28064.0,28063.0,0.05]
[1680448593468,1.11165445,28064.0,28063.0,0.04692458]
[1680448593672,1.11165445,28064.0,28055.0,0.3041]
[1680448593869,0.3007,28056.0,28055.0,0.3041]
[1680448594063,0.3007,28056.0,28051.0,0.4]
[1680448594266,0.3007,28056.0,28049.0,0.4]
[1680448594467,0.3007,28050.0,28042.0,0.3007]
[1680448594662,0.3007,28050.0,28046.0,0.22270518]
[1680448594867,0.3007,28060.0,28053.0,0.4]
[1680448595165,0.05,28066.0,28061.0,0.4]
[1680448595365,0.3007,28071.0,28064.0,0.39646777]
[1680448595566,0.00353223,28074.0,28068.0,0.39646777]
[1680448595773,0.00353223,28074.0,28068.0,0.69716777]
[1680448596166,0.3507,28075.0,28068.0,0.69716777]
[1680448596475,0.05,28078.0,28071.0,0.3007]
[1680448596774,0.05,28078.0,28072.0,0.40757526]
[1680448596973,0.01260394,28075.0,28072.0,0.40757526]
[1680448597178,0.01260394,28075.0,28071.0,0.69716777]
[1680448597179,0.01260394,28075.0,28071.0,0.3007]
[1680448598072,0.003,28072.0,28071.0,0.3007]
[1680448598370,0.003,28075.0,28071.0,0.3007]
[1680448598570,0.01260493,28072.0,28071.0,0.3007]
[1680448598773,0.05,28078.0,28071.0,0.3007]
[1680448598971,0.003,28072.0,28071.0,0.3007]
[1680448599273,0.00353223,28076.0,28071.0,0.3007]
[1680448599479,0.003,28072.0,28071.0,0.3007]
[1680448600970,0.30423223,28080.0,28074.0,0.39646777]
[1680448601170,0.00353223,28080.0,28074.0,0.69716777]
[1680448601475,0.00353223,28080.0,28077.0,0.3007]
[1680448601476,0.01299403,28079.0,28077.0,0.3007]
[1680448602069,0.01299403,28079.0,28074.0,0.3007]
[1680448602070,0.01299403,28079.0,28074.0,0.3037]
[1680448602279,0.00353223,28075.0,28074.0,0.003]
[1680448602466,0.3007,28077.0,28067.0,0.3273]
[1680448602467,0.00353223,28071.0,28067.0,0.3273]
[1680448602665,0.00353223,28071.0,28062.0,1.09646777]
[1680448602872,0.00353223,28071.0,28066.0,0.3007]
[1680448603174,0.00353223,28071.0,28067.0,0.38378299]
[1680448603672,0.00353223,28075.0,28069.0,0.3007]
[1680448603872,0.00353223,28075.0,28072.0,0.3007]
[1680448604071,0.3095,28078.0,28072.0,0.3007]
[1680448604072,0.3095,28078.0,28072.0,0.6014]
[1680448604272,0.01299403,28079.0,28075.0,0.3507]
[1680448604471,0.00353223,28081.0,28075.0,0.6514]
[1680448604672,0.00353223,28081.0,28078.0,0.05]
[1680448604971,0.3007,28083.0,28078.0,0.05]
[1680448605473,0.003,28081.0,28078.0,0.053]
[1680448606070,0.003,28081.0,28080.0,0.3007]
[1680448606576,0.3007,28083.0,28080.0,0.3007]
[1680448607070,0.00353223,28085.0,28080.0,0.3287]
[1680448607477,0.05,28087.0,28080.0,0.3287]
[1680448608581,0.3007,28085.0,28080.0,0.3287]
[1680448608977,0.30423223,28082.0,28080.0,0.028]
[1680448609179,0.3007,28081.0,28080.0,0.028]
[1680448609378,0.3007,28081.0,28080.0,0.078]
[1680448609583,0.3007,28081.0,28080.0,0.05]
[1680448609873,0.7007,28081.0,28080.0,0.05]
[1680448610073,0.7017,28081.0,28080.0,0.05]
[1680448610480,0.7017,28081.0,28078.0,0.05]
[1680448610675,0.3007,28079.0,28078.0,0.05]
[1680448610867,0.00353223,28075.0,28061.0,0.05472646]
[1680448611273,0.001,28081.0,28069.0,0.4]
[1680448611475,0.05,28081.0,28073.0,0.3007]
[1680448611679,0.001,28079.0,28078.0,0.028]
[1680448612375,0.05,28081.0,28078.0,0.028]
[1680448612578,0.05,28081.0,28079.0,0.3007]
[1680448612781,0.05,28080.0,28079.0,0.3007]
[1680448612977,0.05,28080.0,28077.0,0.37350396]
[1680448613179,0.3007,28078.0,28069.0,0.05]
[1680448613483,0.3007,28074.0,28069.0,0.05]
[1680448613778,0.3007,28074.0,28070.0,0.38934379]
[1680448613978,0.3007,28074.0,28072.0,0.05]
[1680448615086,0.01823698,28073.0,28070.0,0.69004379]
[1680448615281,0.3007,28074.0,28070.0,0.74004379]
[1680448615480,0.05,28077.0,28073.0,0.3007]
[1680448615876,0.001,28074.0,28073.0,0.3007]
[1680448616085,0.05,28077.0,28073.0,0.3007]
[1680448616280,0.05,28077.0,28076.0,0.3007]
[1680448616483,0.15,28079.0,28076.0,0.3007]
[1680448616785,0.00897439,28078.0,28076.0,0.3007]
[1680448617084,0.15,28079.0,28076.0,0.3007]
[1680448617283,0.00885584,28077.0,28076.0,0.3007]
[1680448617585,0.15,28079.0,28076.0,0.3287]
[1680448618383,0.05,28080.0,28077.0,0.05]
[1680448618684,0.05,28084.0,28079.0,0.3007]
[1680448619087,0.05,28082.0,28079.0,0.3007]
[1680448620179,0.05,28082.0,28080.0,0.05]
[1680448620787,0.05,28084.0,28079.0,0.3287]
[1680448620983,0.03141087,28084.0,28079.0,0.3287]
[1680448622590,0.03141087,28084.0,28079.0,0.3007]
[1680448622783,0.03141087,28084.0,28079.0,0.3287]
[1680448623187,0.00890161,28083.0,28079.0,0.3287]
[1680448623787,0.00890161,28083.0,28082.0,0.3007]
[1680448623981,0.05,28085.0,28082.0,0.3007]
[1680448624183,0.3007,28086.0,28082.0,0.3007]
[1680448624894,0.3007,28086.0,28082.0,0.3287]
[1680448625091,0.05,28085.0,28082.0,0.3287]
[1680448626588,0.05,28085.0,28082.0,0.028]
[1680448626988,0.6539,28083.0,28073.0,0.06369054]
[1680448627299,0.6539,28083.0,28074.0,0.05]
[1680448627300,0.3007,28075.0,28074.0,0.05]
[1680448627591,0.3007,28075.0,28068.0,0.05]
[1680448627592,0.6539,28075.0,28068.0,0.06369054]
[1680448627894,0.3007,28071.0,28064.0,0.06369054]
[1680448628095,0.3007,28071.0,28065.0,0.22262711]
[1680448628292,0.3007,28068.0,28065.0,0.22262711]
[1680448628493,0.3007,28068.0,28064.0,0.06369054]
[1680448629095,0.28211008,28068.0,28065.0,0.008]
[1680448629293,0.05,28070.0,28066.0,0.06369054]
[1680448629599,0.05,28067.0,28065.0,0.06369054]
[1680448629994,0.05,28067.0,28066.0,0.22261551]
[1680448630299,0.05,28067.0,28066.0,0.30665077]
[1680448630593,0.05,28069.0,28066.0,0.47735077]
[1680448630799,0.05,28072.0,28068.0,0.4714]
[1680448630988,0.05,28072.0,28071.0,0.1699]
[1680448631187,0.05,28073.0,28071.0,0.1699]
[1680448631493,0.05,28073.0,28072.0,0.22261551]
[1680448631697,0.05,28076.0,28072.0,0.22261551]
[1680448632290,0.3007,28075.0,28072.0,0.22261551]
[1680448632488,0.002,28073.0,28072.0,0.22261551]
[1680448632689,0.4,28072.0,28071.0,0.011]
[1680448632989,0.4,28072.0,28068.0,0.05]
[1680448632990,0.7532,28069.0,28068.0,0.05]
[1680448633195,1.7539,28069.0,28066.0,0.05]
[1680448633392,0.7532,28066.0,28063.0,0.05]
[1680448633586,0.6539,28064.0,28062.0,0.05]
[1680448633993,0.6539,28064.0,28059.0,0.06368731]
[1680448634192,0.3007,28061.0,28059.0,0.06368731]
[1680448634388,1.0539,28060.0,28057.0,0.08403526]
[1680448634589,0.6539,28058.0,28053.0,0.06368731]
[1680448634794,0.3007,28054.0,28053.0,0.06368731]
[1680448635190,0.3007,28054.0,28052.0,0.06368731]
[1680448635397,0.3007,28053.0,28052.0,0.06368731]
[1680448635697,0.3007,28053.0,28051.0,0.06368731]
[1680448635998,0.3037,28054.0,28051.0,0.06368731]
[1680448636295,0.3037,28054.0,28052.0,0.06368731]
[1680448636498,0.003,28054.0,28050.0,0.1699]
[1680448636699,0.003,28054.0,28052.0,0.001]
[1680448636899,0.3007,28053.0,28052.0,0.001]
[1680448637299,0.6539,28053.0,28052.0,0.001]
[1680448637700,0.003,28054.0,28052.0,0.001]
[1680448637897,0.05,28053.0,28052.0,0.001]
[1680448638104,0.053,28053.0,28052.0,0.001]
[1680448638499,0.003,28053.0,28052.0,0.051]
[1680448638802,0.3037,28053.0,28052.0,0.051]
[1680448639200,0.3037,28053.0,28052.0,0.001]
[1680448639505,0.003,28053.0,28052.0,0.1721]
[1680448639701,0.053,28054.0,28052.0,0.1721]
[1680448640101,0.003,28053.0,28052.0,0.1721]
[1680448640297,0.003,28053.0,28052.0,0.001]
[1680448640499,0.003,28053.0,28052.0,0.57822976]
[1680448640699,0.05,28059.0,28052.0,0.57822976]
[1680448640700,0.003,28054.0,28052.0,0.57822976]
[1680448640899,0.003,28054.0,28052.0,0.2259159]
[1680448641095,0.02948368,28053.0,28052.0,0.2249159]
[1680448641302,0.003,28053.0,28052.0,0.0548159]
[1680448642602,0.003,28054.0,28052.0,0.2259159]
[1680448642810,0.05,28060.0,28052.0,0.2759159]
[1680448643005,0.05,28060.0,28056.0,0.1699]
[1680448643200,0.02928872,28059.0,28056.0,0.1699]
[1680448643511,0.02928872,28059.0,28058.0,0.3007]
[1680448643808,0.02928872,28059.0,28058.0,0.4718]
[1680448644011,0.053,28060.0,28058.0,0.4718]
[1680448644209,0.053,28060.0,28059.0,0.3007]
[1680448644409,0.05,28060.0,28059.0,0.3007]
[1680448644612,0.01975457,28061.0,28059.0,0.3007]
[1680448644814,0.01975457,28061.0,28060.0,0.1711]
[1680448645106,0.05,28062.0,28060.0,0.55644069]
[1680448645316,0.05,28062.0,28061.0,0.3007]
[1680448645705,0.03139972,28063.0,28061.0,0.68135336]
[1680448645907,0.3532,28062.0,28058.0,0.003]
[1680448646106,0.7007,28060.0,28057.0,0.05]
[1680448646307,0.7007,28060.0,28059.0,0.05]
[1680448646507,0.7007,28060.0,28059.0,0.01458618]
[1680448646710,0.8248,28060.0,28057.0,0.05]
[1680448646912,0.6539,28060.0,28057.0,0.05]
[1680448647115,0.3007,28060.0,28057.0,0.05]
[1680448647420,0.3037,28060.0,28059.0,0.003]
[1680448648412,0.05,28059.0,28057.0,0.003]
[1680448648812,0.05,28059.0,28054.0,0.3007]
[1680448649007,0.05,28059.0,28055.0,0.05]
[1680448649409,0.003,28059.0,28057.0,0.3037]
[1680448649615,0.003,28059.0,28058.0,0.05]
[1680448649916,0.003,28059.0,28058.0,0.3507]
[1680448650619,0.02993454,28061.0,28058.0,0.5218]
[1680448650811,0.3507,28064.0,28058.0,0.5218]
[1680448651016,0.3007,28064.0,28058.0,0.3507]
[1680448651217,0.3007,28064.0,28061.0,0.3007]
[1680448651415,0.05,28063.0,28061.0,0.3007]
[1680448651920,0.05,28063.0,28058.0,0.056]
[1680448652113,0.05,28063.0,28059.0,0.05]
[1680448652311,0.053,28063.0,28061.0,0.006]
[1680448652825,0.053,28063.0,28058.0,0.3067]
[1680448653623,0.03439779,28063.0,28059.0,0.05]
[1680448653925,0.03439779,28063.0,28062.0,0.1711]
[1680448653926,0.003,28063.0,28062.0,0.1711]
[1680448654510,0.003,28063.0,28062.0,0.92410458]
[1680448654817,0.05,28073.0,28062.0,0.92410458]
[1680448654818,0.05,28070.0,28063.0,0.4]
[1680448655016,0.05,28070.0,28068.0,0.1699]
[1680448655212,0.05,28073.0,28068.0,0.1699]
[1680448655418,0.05,28073.0,28070.0,0.3007]
[1680448656111,0.3007,28074.0,28072.0,0.1711]
[1680448656314,0.05,28078.0,28073.0,0.3007]
[1680448656819,0.05,28078.0,28073.0,0.6014]
[1680448657016,0.028,28082.0,28076.0,0.4706]
[1680448657219,0.028,28082.0,28079.0,0.3007]
[1680448657413,0.028,28082.0,28076.0,0.1699]
[1680448657615,0.002,28078.0,28073.0,0.059]
[1680448657814,0.002,28078.0,28075.0,0.3007]
[1680448658019,0.002,28078.0,28073.0,0.059]
[1680448658220,0.3007,28077.0,28073.0,0.05]
[1680448658420,0.30554841,28077.0,28073.0,0.05]
[1680448658725,0.30554841,28077.0,28075.0,0.009]
[1680448659113,0.30854841,28077.0,28073.0,0.009]
[1680448659717,0.05,28076.0,28073.0,0.009]
[1680448660125,0.00582949,28075.0,28073.0,0.009]
[1680448660625,0.00582949,28075.0,28069.0,0.3007]
[1680448660818,0.3017,28077.0,28069.0,0.3007]
[1680448661126,0.053,28075.0,28073.0,0.009]
[1680448661518,0.3007,28074.0,28071.0,0.05]
[1680448661719,0.6539,28074.0,28071.0,0.05]
[1680448661921,0.7039,28074.0,28071.0,0.05]
[1680448662115,0.05,28074.0,28073.0,0.009]
[1680448662725,0.053,28075.0,28073.0,0.009]
[1680448662924,0.003,28075.0,28074.0,0.3007]
[1680448663321,0.05,28078.0,28074.0,0.3007]
[1680448663525,0.3507,28080.0,28074.0,0.3007]
[1680448663721,0.003,28075.0,28074.0,0.3097]
[1680448663927,0.003,28075.0,28074.0,0.3597]
[1680448664322,0.002,28078.0,28074.0,0.3097]
[1680448664922,0.003,28075.0,28074.0,0.3097]
[1680448666325,0.002,28078.0,28074.0,0.3097]
[1680448666626,0.7039,28080.0,28074.0,0.3007]
[1680448666926,0.003,28075.0,28074.0,0.009]
[1680448667328,0.05,28076.0,28074.0,0.009]
[1680448667727,0.003,28075.0,28074.0,0.009]
[1680448668729,0.003,28075.0,28066.0,0.05]
[1680448668925,0.3007,28071.0,28066.0,0.05]
[1680448669126,0.05,28070.0,28066.0,0.3007]
[1680448669337,0.05,28070.0,28064.0,0.05338107]
[1680448669532,0.05,28070.0,28066.0,0.001]
[1680448670132,0.053,28070.0,28066.0,0.001]
[1680448670929,0.3007,28068.0,28066.0,0.001]
[1680448671133,0.05,28067.0,28066.0,0.001]
[1680448672333,0.053,28067.0,28066.0,0.001]
[1680448673727,0.5772,28067.0,28066.0,0.001]
[1680448674636,0.4062,28067.0,28066.0,0.001]
[1680448674830,0.053,28067.0,28066.0,0.001]
[1680448675025,0.003,28067.0,28066.0,0.001]
[1680448675225,0.01436463,28067.0,28066.0,0.001]
[1680448675432,0.003,28067.0,28066.0,0.001]
[1680448677528,0.3007,28076.0,28066.0,0.172]
[1680448677833,0.3007,28076.0,28068.0,0.3007]
[1680448677834,0.05,28075.0,28068.0,0.3007]
[1680448678037,0.05,28075.0,28069.0,0.05]
[1680448678226,0.05,28075.0,28069.0,0.45994971]
[1680448678429,0.3007,28076.0,28071.0,0.3007]
[1680448678733,0.3507,28076.0,28071.0,0.3007]
[1680448678935,0.6539,28073.0,28072.0,0.05]
[1680448679131,0.6539,28073.0,28066.0,0.39238731]
[1680448679432,0.05,28072.0,28071.0,0.015]
[1680448679633,0.3007,28073.0,28071.0,0.015]
[1680448679834,0.3017,28073.0,28072.0,0.028]
[1680448680234,0.05,28075.0,28070.0,0.3007]
[1680448680438,0.001,28072.0,28071.0,0.078]
[1680448681633,0.001,28073.0,28072.0,0.028]
[1680448682137,0.001,28072.0,28071.0,0.078]
[1680448682327,0.001,28072.0,28071.0,0.1635]
[1680448682530,0.001,28073.0,28072.0,0.028]
[1680448682736,0.001,28073.0,28072.0,0.1135]
[1680448682930,0.001,28073.0,28072.0,0.028]
[1680448683143,0.0862,28073.0,28072.0,0.028]
[1680448683329,0.001,28072.0,28071.0,0.028]
[1680448683534,0.051,28072.0,28071.0,0.028]
[1680448683735,0.001,28072.0,28071.0,0.028]
[1680448684431,0.3007,28074.0,28070.0,0.3862]
[1680448684628,0.001,28073.0,28072.0,0.028]
[1680448684828,0.001,28073.0,28072.0,0.0855]
[1680448685029,0.3507,28077.0,28073.0,0.05]
[1680448685233,0.3507,28077.0,28073.0,0.3507]
[1680448685537,0.3507,28077.0,28074.0,0.05]
[1680448685737,0.05,28079.0,28076.0,0.0854]
[1680448685935,0.001,28077.0,28076.0,0.0854]
[1680448686637,0.001,28077.0,28075.0,0.00170131]
[1680448686831,0.001,28077.0,28074.0,0.05]
[1680448687036,0.3007,28076.0,28073.0,0.1575]
[1680448687337,0.3007,28076.0,28074.0,0.022]
[1680448687534,0.3007,28076.0,28070.0,0.36438731]
[1680448687734,0.3007,28076.0,28074.0,0.022]
[1680448687935,0.05,28075.0,28074.0,0.022]
[1680448688337,0.05,28075.0,28074.0,0.028]
[1680448688740,0.051,28075.0,28074.0,0.028]
[1680448689139,0.3517,28075.0,28074.0,0.028]
[1680448690335,0.001,28075.0,28074.0,0.028]
[1680448690733,0.001,28075.0,28074.0,0.02951646]
[1680448691137,0.001,28075.0,28074.0,0.07951646]
[1680448691444,0.001,28075.0,28074.0,0.02951646]
[1680448692149,0.001,28075.0,28074.0,0.07951646]
[1680448692944,0.001,28075.0,28074.0,0.02951646]
[1680448698647,0.001,28075.0,28074.0,0.39390377]
[1680448699253,0.6539,28085.0,28074.0,0.55111646]
[1680448699549,0.3007,28085.0,28077.0,0.4717]
[1680448699751,0.3007,28085.0,28078.0,0.05]
[1680448700552,0.008,28084.0,28080.0,0.3007]
[1680448700753,0.058,28084.0,28081.0,0.2209]
[1680448700946,0.058,28084.0,28082.0,0.05]
[1680448700947,0.008,28084.0,28082.0,0.05]
[1680448701855,0.008,28084.0,28081.0,0.1709]
[1680448702057,0.008,28085.0,28081.0,0.1709]
[1680448702253,0.008,28085.0,28084.0,0.3007]
[1680448702849,0.008,28085.0,28084.0,0.3507]
[1680448703054,0.3007,28089.0,28084.0,0.3507]
[1680448703253,0.3007,28089.0,28087.0,0.3007]
[1680448703651,0.05,28088.0,28087.0,0.3007]
[1680448703848,0.3017,28089.0,28087.0,0.3007]
[1680448704053,0.3017,28089.0,28088.0,0.05]
[1680448704250,0.001,28089.0,28088.0,0.05]
[1680448704663,0.05,28093.0,28087.0,0.3507]
[1680448704861,0.05,28093.0,28090.0,0.4717]
[1680448705251,0.05,28094.0,28091.0,0.06901957]
[1680448705562,0.05,28096.0,28093.0,0.3007]
[1680448705763,0.05,28097.0,28094.0,0.05]
[1680448706076,0.3007,28098.0,28096.0,0.171]
[1680448706661,0.3007,28098.0,28094.0,0.05]
[1680448707061,0.3007,28098.0,28096.0,0.3007]
[1680448707266,0.3532,28096.0,28093.0,0.3097]
[1680448707564,0.05,28097.0,28093.0,0.3097]
[1680448707959,0.05,28095.0,28093.0,0.3007]
[1680448708461,0.05,28095.0,28093.0,0.3167]
[1680448708857,0.001,28095.0,28093.0,0.3227]
[1680448709460,0.001,28095.0,28094.0,0.1706]
[1680448709854,0.001,28095.0,28094.0,0.2206]
[1680448710765,0.001,28095.0,28093.0,0.3227]
[1680448710962,0.001,28095.0,28094.0,0.022]
[1680448711162,0.001,28095.0,28094.0,0.072]
[1680448711566,0.001,28095.0,28094.0,0.243]
[1680448712965,0.05,28101.0,28094.0,0.243]
[1680448713172,0.05,28101.0,28098.0,0.3007]
[1680448713365,0.05,28102.0,28099.0,0.05]
[1680448713566,0.7039,28105.0,28100.0,0.1706]
[1680448713767,0.7039,28105.0,28101.0,0.3507]
[1680448713768,0.3507,28105.0,28101.0,0.3507]
[1680448713965,0.3007,28105.0,28104.0,0.1706]
[1680448714162,0.3007,28105.0,28102.0,0.2209]
[1680448714367,0.05,28107.0,28102.0,0.2209]
[1680448714568,0.3507,28107.0,28103.0,0.05]
[1680448714765,0.3532,28109.0,28103.0,0.05]
[1680448714959,0.3007,28107.0,28103.0,0.05]
[1680448715158,0.05,28108.0,28102.0,0.186]
[1680448715563,0.05,28106.0,28103.0,0.05]
[1680448715968,0.05,28106.0,28105.0,0.171]
[1680448716261,0.05,28108.0,28104.0,0.3007]
[1680448716459,0.4032,28108.0,28104.0,0.3007]
[1680448717371,0.3007,28105.0,28104.0,0.002]
[1680448717561,0.6539,28105.0,28104.0,0.002]
[1680448717967,0.6539,28105.0,28101.0,0.3007]
[1680448718167,0.6539,28105.0,28104.0,0.008]
[1680448718473,0.6539,28105.0,28104.0,0.028]
[1680448718672,0.7039,28105.0,28104.0,0.028]
[1680448719667,0.028,28104.0,28094.0,0.35428055]
[1680448719873,0.3532,28099.0,28094.0,0.3007]
[1680448720068,0.05,28098.0,28094.0,0.3007]
[1680448720373,0.3007,28097.0,28095.0,0.02102976]
[1680448720681,0.05,28096.0,28095.0,0.02102976]
[1680448721573,0.052,28096.0,28095.0,0.03102976]
[1680448722474,0.002,28096.0,28095.0,0.20122976]
[1680448722869,0.002,28096.0,28095.0,0.55192976]
[1680448723474,0.003,28096.0,28095.0,0.55092976]
[1680448723673,0.05,28099.0,28095.0,0.55092976]
[1680448723969,0.7039,28106.0,28099.0,0.05]
[1680448724167,0.3507,28106.0,28101.0,0.4716]
[1680448724475,0.3507,28106.0,28102.0,0.05]
[1680448724672,0.05,28106.0,28102.0,0.05]
[1680448724874,0.05,28108.0,28104.0,0.3007]
[1680448725064,0.6328,28109.0,28107.0,0.1706]
[1680448725065,0.3007,28109.0,28107.0,0.1706]
[1680448725375,0.3007,28109.0,28105.0,0.221]
[1680448725875,0.05,28108.0,28105.0,0.221]
[1680448726068,0.05,28108.0,28105.0,0.171]
[1680448726264,0.3007,28112.0,28107.0,0.3007]
[1680448726471,0.05,28114.0,28107.0,0.3007]
[1680448726472,0.171,28113.0,28107.0,0.3007]
[1680448726776,0.001,28109.0,28108.0,0.05]
[1680448727571,0.05,28115.0,28108.0,0.5215]
[1680448727879,0.05,28115.0,28112.0,0.05]
[1680448728069,0.05,28117.0,28112.0,0.2201]
[1680448728268,0.05,28117.0,28112.0,0.1701]
[1680448728669,0.02,28115.0,28112.0,0.1711]
[1680448728975,0.02,28115.0,28113.0,0.05]
[1680448729368,0.02,28115.0,28112.0,0.2211]
[1680448729566,0.07,28117.0,28114.0,0.05]
[1680448729768,0.07,28117.0,28114.0,0.3007]
[1680448729968,0.007,28115.0,28114.0,0.3007]
[1680448730475,0.007,28115.0,28114.0,0.4715]
[1680448730672,0.007,28115.0,28114.0,0.3007]
[1680448730875,0.007,28115.0,28114.0,0.1706]
[1680448731176,0.05,28117.0,28114.0,0.001]
[1680448731177,0.1708,28116.0,28114.0,0.001]
[1680448731377,0.05,28115.0,28114.0,0.001]
[1680448731565,0.05,28115.0,28111.0,0.3007]
[1680448731770,0.057,28115.0,28114.0,0.001]
[1680448731969,0.057,28115.0,28114.0,0.1718]
[1680448732576,0.05,28115.0,28114.0,0.001]
[1680448733083,0.057,28115.0,28114.0,0.001]
[1680448733872,0.057,28115.0,28114.0,0.03366926]
[1680448733873,0.007,28115.0,28114.0,0.03366926]
[1680448734075,0.007,28115.0,28114.0,0.20446926]